fUSD/lending_fUSD_20241016
["ID","MTS","AMOUNT","RATE_DAILY","PERIOD"]
[340328836,1729050640975,-286.772,0.00010979,2]
[340328838,1729050640984,-1088.825,0.00010979,2]
[340328840,1729050640994,-500.0,0.00010985,2]
[340328842,1729050641004,-500.0,0.00010985,2]
[340328844,1729050641013,-500.0,0.00010985,2]
[340328846,1729050641023,-500.0,0.00010985,2]
[340328848,1729050641032,-1728.65,0.00010985,2]
[340328850,1729050641041,-500.0,0.00010985,2]
[340328852,1729050641050,-500.0,0.00010985,2]
[340328854,1729050641059,-500.0,0.00010985,2]
[340328856,1729050641069,-500.0,0.00010985,2]
[340328858,1729050641078,-500.0,0.00010985,2]
[340328859,1729050641087,-500.0,0.00010985,2]
[340328860,1729050641097,-2235.01,0.00010985,2]
[340328861,1729050641106,-574.63,0.00010985,2]
[340328862,1729050641116,-829.73,0.00010985,2]
[340328863,1729050641125,-1863.09,0.00010985,2]
[340328864,1729050641134,-500.0,0.00010985,2]
[340328865,1729050641144,-2170.58,0.00010985,2]
[340328866,1729050641154,-1013.65,0.00010985,2]
[340328867,1729050641164,-189.48540933,0.00010985,2]
[340328868,1729050641173,-948.62,0.00010985,2]
[340328869,1729050641182,-292.32775024,0.00010985,2]
[340328870,1729050641191,-606.07527027,0.00010985,2]
[340328871,1729050641202,-500.0,0.00010985,2]
[340328872,1729050641211,-500.098481,0.00010986,2]
[340328873,1729050641220,-500.0,0.00010986,2]
[340328874,1729050641230,-500.0,0.00010986,2]
[340328875,1729050641239,-500.0,0.00010986,2]
[340328876,1729050641248,-500.0,0.00010986,2]
[340328877,1729050641258,-731.4,0.00010986,2]
[340328878,1729050641268,-500.0,0.00010986,2]
[340328879,1729050641277,-802.61,0.00010986,2]
[340328880,1729050641287,-849.77,0.00010986,2]
[340328881,1729050641296,-500.0,0.00010986,2]
[340328882,1729050641306,-500.0,0.00010986,2]
[340328883,1729050641315,-500.0,0.00010986,2]
[340328884,1729050641323,-500.0,0.00010986,2]
[340328885,1729050641332,-500.0,0.00010986,2]
[340328886,1729050641342,-794.09,0.00010986,2]
[340328887,1729050641351,-500.0,0.00010986,2]
[340328888,1729050641360,-500.0,0.00010986,2]
[340328889,1729050641369,-500.0,0.00010986,2]
[340328890,1729050641378,-500.0,0.00010986,2]
[340328891,1729050641389,-500.0,0.00010986,2]
[340328892,1729050641398,-500.0,0.00010987,2]
[340328893,1729050641407,-151.0,0.00010987,2]
[340328894,1729050641417,-802.25,0.00010987,2]
[340328895,1729050641426,-972.74,0.00010987,2]
[340328896,1729050641435,-500.0,0.00010987,2]
[340328897,1729050641444,-577.37,0.00010987,2]
[340328898,1729050641454,-500.0,0.00010987,2]
[340328899,1729050641464,-500.0,0.00010987,2]
[340328900,1729050641473,-557.07,0.00010987,2]
[340328901,1729050641482,-500.0,0.00010987,2]
[340328902,1729050641492,-825.11,0.00010987,2]
[340328903,1729050641501,-500.0,0.00010987,2]
[340328904,1729050641511,-500.0,0.00010987,2]
[340328905,1729050641520,-500.0,0.00010987,2]
[340328906,1729050641530,-500.0,0.00010987,2]
[340328907,1729050641539,-500.0,0.00010987,2]
[340328908,1729050641549,-273.27112983,0.00010987,2]
[340328909,1729050641559,-500.0,0.00010987,2]
[340328910,1729050641569,-500.0,0.00010987,2]
[340328911,1729050641579,-597.44,0.00010987,2]
[340328912,1729050641588,-500.0,0.00010987,2]
[340328913,1729050641598,-500.0,0.00010987,2]
[340328914,1729050641608,-500.0,0.00010987,2]
[340328915,1729050641618,-1008.01,0.00010987,2]
[340328916,1729050641627,-500.0,0.00010987,2]
[340328917,1729050641636,-500.0,0.00010987,2]
[340328918,1729050641646,-500.0,0.00010987,2]
[340328919,1729050641659,-813.85,0.00010987,2]
[340328920,1729050641668,-1070.9,0.00010987,2]
[340328921,1729050641677,-1047.72,0.00010987,2]
[340328922,1729050641687,-500.0,0.00010987,2]
[340328923,1729050641697,-1038.3,0.00010987,2]
[340328924,1729050641707,-1528.5,0.00010987,2]
[340328925,1729050641716,-500.0,0.00010987,2]
[340328926,1729050641726,-500.0,0.00010987,2]
[340328927,1729050641736,-1095.39,0.00010987,2]
[340328928,1729050641749,-1667.72,0.00010987,2]
[340328929,1729050641759,-1760.06,0.00010987,2]
[340328930,1729050641768,-500.0,0.00010987,2]
[340328931,1729050641777,-1130.61,0.00010987,2]
[340328932,1729050641787,-500.0,0.00010987,2]
[340328933,1729050641797,-1138.02,0.00010987,2]
[340328934,1729050641807,-1105.21,0.00010987,2]
[340328935,1729050641817,-500.0,0.00010987,2]
[340328936,1729050641826,-500.0,0.00010987,2]
[340328937,1729050641835,-500.0,0.00010987,2]
[340328938,1729050641844,-517.84,0.00010987,2]
[340328939,1729050641854,-500.0,0.00010987,2]
[340328940,1729050641864,-500.0,0.00010987,2]
[340328941,1729050641874,-500.0,0.00010987,2]
[340328942,1729050641883,-500.0,0.00010987,2]
[340328943,1729050641893,-500.0,0.00010987,2]
[340328944,1729050641902,-500.0,0.00010987,2]
[340328945,1729050641911,-500.0,0.00010987,2]
[340328946,1729050641920,-500.0,0.00010987,2]
[340328947,1729050641929,-1012.22,0.00010987,2]
[340328948,1729050641939,-500.0,0.00010987,2]
[340328949,1729050641948,-629.54,0.00010987,2]
[340328950,1729050641958,-1052.75,0.00010987,2]
[340328951,1729050641967,-1839.09,0.00010987,2]
[340328952,1729050641977,-500.0,0.00010987,2]
[340328953,1729050641988,-646.96,0.00010987,2]
[340328954,1729050641998,-982.22,0.00010987,2]
[340328955,1729050642007,-665.18,0.00010987,2]
[340328956,1729050642016,-500.0,0.00010987,2]
[340328957,1729050642028,-1196.74,0.00010987,2]
[340328958,1729050642039,-1615.87,0.00010987,2]
[340328959,1729050642048,-194.66003356,0.00010987,2]
[340328960,1729050642058,-500.0,0.00010987,2]
[340328961,1729050642067,-500.0,0.00010987,2]
[340328962,1729050642077,-1118.81,0.00010987,2]
[340328963,1729050642087,-500.0,0.00010987,2]
[340328964,1729050642097,-1561.85,0.00010987,2]
[340328965,1729050642107,-899.26,0.00010987,2]
[340328966,1729050642117,-842.32,0.00010987,2]
[340328967,1729050642126,-1087.89,0.00010987,2]
[340328968,1729050642136,-508.41,0.00010987,2]
[340328969,1729050642147,-596.72,0.00010987,2]
[340328970,1729050642158,-500.0,0.00010987,2]
[340328971,1729050642167,-802.11,0.00010987,2]
[340328972,1729050642176,-1152.7,0.00010987,2]
[340328973,1729050642187,-1148.13,0.00010987,2]
[340328974,1729050642197,-902.69,0.00010987,2]
[340328975,1729050642207,-1602.64,0.00010987,2]
[340328976,1729050642216,-500.0,0.00010987,2]
[340328977,1729050642227,-500.0,0.00010987,2]
[340328978,1729050642237,-4383.87,0.00010987,2]
[340328979,1729050642248,-861.99,0.00010987,2]
[340328980,1729050642257,-500.0,0.00010987,2]
[340328981,1729050642266,-548.0,0.00010987,2]
[340328982,1729050642276,-532.74,0.00010987,2]
[340328983,1729050642287,-737.35,0.00010987,2]
[340328984,1729050642297,-500.0,0.00010987,2]
[340328985,1729050642308,-1804.75,0.00010987,2]
[340328986,1729050642317,-500.0,0.00010987,2]
[340328987,1729050642326,-1132.82,0.00010987,2]
[340328988,1729050642336,-500.0,0.00010987,2]
[340328989,1729050642345,-500.0,0.00010987,2]
[340328990,1729050642354,-650.03,0.00010987,2]
[340328991,1729050642363,-1062.21,0.00010987,2]
[340328992,1729050642372,-500.0,0.00010987,2]
[340328993,1729050642381,-1618.19,0.00010987,2]
[340328994,1729050642390,-641.8,0.00010987,2]
[340328995,1729050642400,-500.0,0.00010987,2]
[340328996,1729050642409,-511.29,0.00010987,2]
[340328997,1729050642418,-3946.62158133,0.00010988,2]
[340328998,1729050642428,-500.0,0.00010988,2]
[340328999,1729050642438,-500.0,0.00010988,2]
[340329000,1729050642448,-500.0,0.00010988,2]
[340329001,1729050642459,-500.0,0.00010988,2]
[340329002,1729050642468,-500.0,0.00010988,2]
[340329003,1729050642477,-775.75,0.00010988,2]
[340329004,1729050642487,-610.03,0.00010988,2]
[340329005,1729050642496,-1728.65,0.00010988,2]
[340329006,1729050642506,-500.0,0.00010988,2]
[340329007,1729050642515,-500.0,0.00010988,2]
[340329008,1729050642524,-500.0,0.00010988,2]
[340329009,1729050642535,-500.0,0.00010988,2]
[340329010,1729050642544,-500.0,0.00010988,2]
[340329011,1729050642553,-500.0,0.00010988,2]
[340329012,1729050642563,-500.0,0.00010988,2]
[340329013,1729050642572,-500.0,0.00010988,2]
[340329014,1729050642581,-500.0,0.00010988,2]
[340329015,1729050642591,-828.83,0.00010988,2]
[340329016,1729050642600,-500.0,0.00010988,2]
[340329017,1729050642609,-1259.66,0.00010988,2]
[340329018,1729050642618,-921.87,0.00010988,2]
[340329019,1729050642628,-500.0,0.00010988,2]
[340329020,1729050642637,-500.0,0.00010988,2]
[340329021,1729050642648,-1312.5,0.00010988,2]
[340329022,1729050642661,-2235.01,0.00010988,2]
[340329023,1729050642671,-574.63,0.00010988,2]
[340329024,1729050642680,-500.0,0.00010988,2]
[340329025,1729050642690,-9871.27,0.00010988,2]
[340329026,1729050642705,-500.0,0.00010988,2]
[340329027,1729050642714,-1863.09,0.00010988,2]
[340329028,1729050642723,-849.77,0.00010988,2]
[340329029,1729050642734,-2170.58,0.00010988,2]
[340329030,1729050642745,-500.0,0.00010988,2]
[340329031,1729050642754,-500.0,0.00010988,2]
[340329032,1729050642763,-647.82260854,0.00010988,2]
[340329033,1729050642773,-500.0,0.00010988,2]
[340329034,1729050642783,-500.0,0.00010988,2]
[340329035,1729050642795,-794.09,0.00010988,2]
[340329036,1729050642806,-2010.01,0.00010988,2]
[340329038,1729050642815,-553.33146484,0.00010988,2]
[340329040,1729050642826,-500.0,0.00010988,2]
[340329041,1729050642836,-2787.88,0.00010988,2]
[340329042,1729050642847,-500.0,0.00010988,2]
[340329043,1729050642857,-500.0,0.00010988,2]
[340329044,1729050642866,-292.04015177,0.00010988,2]
[340329045,1729050642876,-1246.46,0.00010988,2]
[340329047,1729050642886,-500.0,0.00010989,2]
[340329050,1729050642896,-223.0,0.00010989,2]
[340329052,1729050642906,-802.25,0.00010989,2]
[340329053,1729050642915,-972.74,0.00010989,2]
[340329056,1729050642926,-500.0,0.00010989,2]
[340329058,1729050642935,-577.37,0.00010989,2]
[340329060,1729050642945,-500.0,0.00010989,2]
[340329061,1729050642955,-500.0,0.00010989,2]
[340329063,1729050642965,-557.07,0.00010989,2]
[340329065,1729050642975,-454.85063491,0.00010989,2]
[340329068,1729050642992,-45.14936509,0.00010989,2]
[340329070,1729050643001,-205.57594004,0.00010989,2]
[340329072,1729050643013,-619.53405996,0.00010989,2]
[340329073,1729050643022,-500.0,0.00010989,2]
[340329074,1729050643031,-500.0,0.00010989,2]
[340329075,1729050643040,-396.848935,0.00010989,2]
[340329076,1729050643049,-500.0,0.00010989,2]
[340329077,1729050643059,-500.0,0.00010989,2]
[340329078,1729050643068,-500.0,0.00010989,2]
[340329079,1729050643078,-85.8289602,0.00010989,2]
[340329080,1729050643090,-486.06072121,0.00010989,2]
[340329081,1729050643101,-25.55031859,0.00010989,2]
[340329082,1729050643111,-500.0,0.00010989,2]
[340329083,1729050643121,-14.60920425,0.00010989,2]
[340329084,1729050643132,-993.40079575,0.00010989,2]
[340329085,1729050643141,-500.0,0.00010989,2]
[340329086,1729050643151,-417.46988288,0.00010989,2]
[340329087,1729050643162,-653.43011712,0.00010989,2]
[340329088,1729050643172,-1047.72,0.00010989,2]
[340329089,1729050643181,-1528.5,0.00010989,2]
[340329090,1729050643190,-539.15444821,0.00010989,2]
[340329091,1729050643200,-500.0,0.00010989,2]
[340329092,1729050643210,-1095.39,0.00010989,2]
[340329093,1729050643219,-1760.06,0.00010989,2]
[340329094,1729050643229,-500.0,0.00010989,2]
[340329095,1729050643238,-1130.61,0.00010989,2]
[340329096,1729050643247,-500.0,0.00010989,2]
[340329097,1729050643256,-1048.21996389,0.00010989,2]
[340329098,1729050643268,-89.80003611,0.00010989,2]
[340329099,1729050643278,-1105.21,0.00010989,2]
[340329100,1729050643287,-500.0,0.00010989,2]
[340329101,1729050643296,-500.0,0.00010989,2]
[340329102,1729050643306,-500.0,0.00010989,2]
[340329103,1729050643316,-500.0,0.00010989,2]
[340329104,1729050643325,-500.0,0.00010989,2]
[340329105,1729050643335,-500.0,0.00010989,2]
[340329106,1729050643345,-500.0,0.00010989,2]
[340329107,1729050643355,-500.0,0.00010989,2]
[340329108,1729050643365,-629.54,0.00010989,2]
[340329109,1729050643374,-1052.75,0.00010989,2]
[340329110,1729050643384,-646.96,0.00010989,2]
[340329111,1729050643394,-982.22,0.00010989,2]
[340329112,1729050643403,-464.21093749,0.00010989,2]
[340329113,1729050643415,-8.20497253,0.00010989,2]
[340329114,1729050643425,-524.29502747,0.00010989,2]
[340329115,1729050643437,-140.88497253,0.00010989,2]
[340329116,1729050643447,-500.0,0.00010989,2]
[340329117,1729050643457,-1118.81,0.00010989,2]
[340329118,1729050643467,-500.0,0.00010989,2]
[340329119,1729050643476,-899.26,0.00010989,2]
[340329120,1729050643486,-1087.89,0.00010989,2]
[340329121,1729050643497,-596.72,0.00010989,2]
[340329122,1729050643507,-500.0,0.00010989,2]
[340329123,1729050643517,-500.0,0.00010989,2]
[340329125,1729050643527,-861.99,0.00010989,2]
[340329127,1729050643536,-829.73,0.00010989,2]
[340329129,1729050643546,-500.0,0.00010989,2]
[340329131,1729050643557,-532.74,0.00010989,2]
[340329132,1729050643566,-1013.65,0.00010989,2]
[340329133,1729050643576,-500.0,0.00010989,2]
[340329134,1729050643587,-948.62,0.00010989,2]
[340329135,1729050643600,-500.0,0.00010989,2]
[340329136,1729050643611,-500.0,0.00010989,2]
[340329137,1729050643622,-641.8,0.00010989,2]
[340329138,1729050643632,-511.29,0.00010989,2]
[340329139,1729050643642,-802.25,0.0001099,2]
[340329140,1729050643653,-972.74,0.0001099,2]
[340329141,1729050643665,-577.37,0.0001099,2]
[340329142,1729050643677,-500.0,0.0001099,2]
[340329143,1729050643686,-557.07,0.0001099,2]
[340329144,1729050643697,-500.0,0.0001099,2]
[340329145,1729050643707,-500.0,0.0001099,2]
[340329146,1729050643717,-500.0,0.0001099,2]
[340329147,1729050643728,-500.0,0.0001099,2]
[340329148,1729050643739,-500.0,0.0001099,2]
[340329149,1729050643749,-500.0,0.0001099,2]
[340329150,1729050643758,-597.44,0.0001099,2]
[340329151,1729050643768,-500.0,0.0001099,2]
[340329152,1729050643779,-500.0,0.0001099,2]
[340329153,1729050643791,-1008.01,0.0001099,2]
[340329154,1729050643803,-399.82356249,0.0001099,2]
[340329155,1729050643813,-500.0,0.0001099,2]
[340329156,1729050643824,-813.85,0.0001099,2]
[340329157,1729050643834,-500.0,0.0001099,2]
[340329158,1729050643844,-1038.3,0.0001099,2]
[340329159,1729050643854,-1667.72,0.0001099,2]
[340329160,1729050643864,-500.0,0.0001099,2]
[340329161,1729050643874,-500.0,0.0001099,2]
[340329162,1729050643883,-517.84,0.0001099,2]
[340329163,1729050643893,-500.0,0.0001099,2]
[340329164,1729050643902,-1012.22,0.0001099,2]
[340329165,1729050643911,-500.0,0.0001099,2]
[340329166,1729050643921,-1839.09,0.0001099,2]
[340329167,1729050643931,-500.0,0.0001099,2]
[340329168,1729050643941,-1196.74,0.0001099,2]
[340329169,1729050643952,-1615.87,0.0001099,2]
[340329170,1729050643962,-500.0,0.0001099,2]
[340329171,1729050643972,-500.0,0.0001099,2]
[340329172,1729050643982,-1561.85,0.0001099,2]
[340329173,1729050643991,-842.32,0.0001099,2]
[340329174,1729050644001,-508.41,0.0001099,2]
[340329175,1729050644011,-500.0,0.0001099,2]
[340329176,1729050644020,-802.11,0.0001099,2]
[340329177,1729050644030,-1152.7,0.0001099,2]
[340329178,1729050644039,-500.0,0.0001099,2]
[340329179,1729050644049,-1148.13,0.0001099,2]
[340329180,1729050644192,-902.69,0.0001099,2]
[340329181,1729050644205,-1602.64,0.0001099,2]
[340329182,1729050644214,-731.4,0.0001099,2]
[340329183,1729050644223,-4383.87,0.0001099,2]
[340329184,1729050644233,-802.61,0.0001099,2]
[340329185,1729050644243,-76.00407421,0.0001099,2]
[340329186,1729050644255,-355.72425126,0.0001099,2]
[340329187,1729050644350,-684.93719709,0.00010858,2]
[340329188,1729050644361,-315.06280291,0.00010858,2]
[340329189,1729050644370,-68.27167453,0.0001099,2]
[340329190,1729050644379,-635.94871289,0.0001099,2]
[340329191,1729050644389,-548.0,0.0001099,2]
[340329192,1729050644398,-251.82539931,0.0001099,2]
[340329193,1729050644410,-485.52460069,0.0001099,2]
[340329194,1729050644419,-1804.75,0.0001099,2]
[340329195,1729050644428,-176.87539881,0.0001099,2]
[340329196,1729050644439,-323.12460119,0.0001099,2]
[340329197,1729050644449,-1132.82,0.0001099,2]
[340329198,1729050644458,-500.0,0.0001099,2]
[340329199,1729050644468,-650.03,0.0001099,2]
[340329200,1729050644477,-1062.21,0.0001099,2]
[340329201,1729050644486,-1618.19,0.0001099,2]
[340329202,1729050644495,-500.0,0.0001099,2]
[340329203,1729050644505,-488.06257591,0.0001099,2]
[340329204,1729050644514,-500.0,0.0001099,2]
[340329205,1729050644523,-278.8323885,0.00010991,2]
[340329206,1729050644534,-387.18123128,0.00010991,2]
[340329207,1729050644545,-415.06876872,0.00010991,2]
[340329208,1729050644555,-972.74,0.00010991,2]
[340329209,1729050644564,-500.0,0.00010991,2]
[340329210,1729050644573,-46.72228371,0.00010991,2]
[340329211,1729050644585,-530.64771629,0.00010991,2]
[340329212,1729050644595,-469.35228371,0.00010991,2]
[340329213,1729050644606,-30.64771629,0.00010991,2]
[340329214,1729050644616,-342.86548371,0.00010991,2]
[340329215,1729050644628,-157.13451629,0.00010991,2]
[340329216,1729050644638,-557.07,0.00010991,2]
[340329217,1729050644648,-500.0,0.00010991,2]
[340329218,1729050644661,-825.11,0.00010991,2]
[340329219,1729050644671,-246.50720085,0.00010991,2]
[340329220,1729050644682,-253.49279915,0.00010991,2]
[340329221,1729050644692,-500.0,0.00010991,2]
[340329222,1729050644703,-500.0,0.00010991,2]
[340329223,1729050644712,-500.0,0.00010991,2]
[340329224,1729050644721,-500.0,0.00010991,2]
[340329225,1729050644733,-597.44,0.00010991,2]
[340329226,1729050644744,-414.07781009,0.00010991,2]
[340329227,1729050644756,-85.92218991,0.00010991,2]
[340329228,1729050644766,-275.93281609,0.00010991,2]
[340329229,1729050644777,-224.06718391,0.00010991,2]
[340329230,1729050644787,-458.56506449,0.00010991,2]
[340329231,1729050644802,-612.33493551,0.00010991,2]
[340329232,1729050644812,-1047.72,0.00010991,2]
[340329233,1729050644822,-1528.5,0.00010991,2]
[340329234,1729050644832,-500.0,0.00010991,2]
[340329235,1729050644842,-1095.39,0.00010991,2]
[340329236,1729050644852,-1760.06,0.00010991,2]
[340329237,1729050644861,-500.0,0.00010991,2]
[340329238,1729050644871,-1130.61,0.00010991,2]
[340329239,1729050644881,-500.0,0.00010991,2]
[340329240,1729050644891,-1138.02,0.00010991,2]
[340329241,1729050644901,-1105.21,0.00010991,2]
[340329242,1729050644911,-74.82442633,0.00010991,2]
[340329243,1729050644934,-259.98060429,0.00010991,2]
[340329244,1729050644948,-165.19496938,0.00010991,2]
[340329245,1729050644958,-500.0,0.00010991,2]
[340329246,1729050644968,-44.98636584,0.00010991,2]
[340329247,1729050644980,-455.01363416,0.00010991,2]
[340329248,1729050644990,-500.0,0.00010991,2]
[340329249,1729050645000,-500.0,0.00010991,2]
[340329250,1729050645010,-500.0,0.00010991,2]
[340329251,1729050645019,-500.0,0.00010991,2]
[340329252,1729050645029,-500.0,0.00010991,2]
[340329253,1729050645039,-629.54,0.00010991,2]
[340329254,1729050645049,-1052.75,0.00010991,2]
[340329255,1729050645059,-646.96,0.00010991,2]
[340329256,1729050645068,-982.22,0.00010991,2]
[340329257,1729050645079,-665.18,0.00010991,2]
[340329258,1729050645089,-500.0,0.00010991,2]
[340329259,1729050645098,-332.33807394,0.00010991,2]
[340329260,1729050645110,-167.66192606,0.00010991,2]
[340329261,1729050645119,-614.5237221,0.00010991,2]
[340329262,1729050645131,-504.2862779,0.00010991,2]
[340329263,1729050645140,-250.653721,0.00010991,2]
[340329264,1729050645152,-249.346279,0.00010991,2]
[340329265,1729050645162,-899.26,0.00010991,2]
[340329266,1729050645171,-500.0,0.00010991,2]
[340329267,1729050645181,-1087.89,0.00010991,2]
[340329268,1729050645191,-1259.66,0.00010991,2]
[340329269,1729050645202,-596.72,0.00010991,2]
[340329270,1729050645213,-323.04072733,0.00010991,2]
[340329271,1729050645230,-989.45927267,0.00010991,2]
[340329272,1729050645240,-500.0,0.00010991,2]
[340329273,1729050645250,-500.0,0.00010991,2]
[340329274,1729050645260,-6942.50558271,0.00010991,2]
[340329275,1729050645271,-2928.76441729,0.00010991,2]
[340329276,1729050645282,-500.0,0.00010991,2]
[340329277,1729050645292,-861.99,0.00010991,2]
[340329278,1729050645302,-500.0,0.00010991,2]
[340329279,1729050645311,-849.77,0.00010991,2]
[340329280,1729050645321,-500.0,0.00010991,2]
[340329281,1729050645331,-532.74,0.00010991,2]
[340329282,1729050645342,-500.0,0.00010991,2]
[340329283,1729050645352,-500.0,0.00010991,2]
[340329284,1729050645362,-500.0,0.00010991,2]
[340329285,1729050645372,-500.0,0.00010991,2]
[340329286,1729050645381,-794.09,0.00010991,2]
[340329287,1729050645390,-500.0,0.00010991,2]
[340329288,1729050645400,-243.30281541,0.00010991,2]
[340329289,1729050645410,-500.0,0.00010991,2]
[340329290,1729050645420,-641.8,0.00010991,2]
[340329291,1729050645430,-511.29,0.00010991,2]
[340329292,1729050645440,-75603.22702166,0.00010992,2]
[340329293,1729050645449,-500.0,0.00010994,2]
[340329294,1729050645459,-500.0,0.00010994,2]
[340329295,1729050645469,-500.0,0.00010994,2]
[340329296,1729050645479,-500.0,0.00010994,2]
[340329297,1729050645489,-456.25692033,0.00010994,2]
[340329298,1729050645500,-319.49307967,0.00010994,2]
[340329299,1729050645510,-51.33427312,0.00010994,2]
[340329300,1729050645522,-558.69572688,0.00010994,2]
[340329301,1729050645532,-1728.65,0.00010994,2]
[340329302,1729050645543,-500.0,0.00010994,2]
[340329303,1729050645553,-500.0,0.00010994,2]
[340329304,1729050645563,-500.0,0.00010994,2]
[340329305,1729050645573,-500.0,0.00010994,2]
[340329306,1729050645583,-500.0,0.00010994,2]
[340329307,1729050645592,-500.0,0.00010994,2]
[340329308,1729050645602,-828.83,0.00010994,2]
[340329309,1729050645610,-500.0,0.00010994,2]
[340329310,1729050645620,-921.87,0.00010994,2]
[340329311,1729050645630,-500.0,0.00010994,2]
[340329312,1729050645640,-500.0,0.00010994,2]
[340329313,1729050645650,-2235.01,0.00010994,2]
[340329314,1729050645661,-574.63,0.00010994,2]
[340329315,1729050645671,-1863.09,0.00010994,2]
[340329316,1729050645681,-2170.58,0.00010994,2]
[340329317,1729050645691,-500.0,0.00010994,2]
[340329318,1729050645702,-878.88909948,0.00010994,2]
[340329319,1729050645716,-1131.12090052,0.00010994,2]
[340329320,1729050645726,-2787.88,0.00010994,2]
[340329321,1729050645736,-415.29987835,0.00010994,2]
[340329323,1729050645746,-1246.46,0.00010994,2]
[340329324,1729050645756,-461.71756614,0.00010995,2]
[340329325,1729050645765,-500.0,0.00010995,2]
[340329326,1729050645776,-500.0,0.00010995,2]
[340329327,1729050645785,-500.0,0.00010995,2]
[340329328,1729050645795,-813.85,0.00010995,2]
[340329329,1729050645804,-416.15933843,0.00010995,2]
[340329330,1729050645814,-1038.3,0.00010995,2]
[340329331,1729050645823,-1667.72,0.00010995,2]
[340329332,1729050645832,-500.0,0.00010995,2]
[340329333,1729050645842,-500.0,0.00010995,2]
[340329334,1729050645852,-517.84,0.00010995,2]
[340329335,1729050645861,-500.0,0.00010995,2]
[340329336,1729050645871,-1012.22,0.00010995,2]
[340329337,1729050645880,-500.0,0.00010995,2]
[340329338,1729050645889,-1839.09,0.00010995,2]
[340329339,1729050645899,-500.0,0.00010995,2]
[340329340,1729050645909,-1196.74,0.00010995,2]
[340329341,1729050645918,-1615.87,0.00010995,2]
[340329342,1729050645927,-500.0,0.00010995,2]
[340329343,1729050645937,-500.0,0.00010995,2]
[340329344,1729050645947,-1561.85,0.00010995,2]
[340329345,1729050645957,-842.32,0.00010995,2]
[340329346,1729050645968,-508.41,0.00010995,2]
[340329347,1729050645977,-802.11,0.00010995,2]
[340329348,1729050645986,-1152.7,0.00010995,2]
[340329349,1729050645996,-500.0,0.00010995,2]
[340329350,1729050646006,-1148.13,0.00010995,2]
[340329351,1729050646015,-902.69,0.00010995,2]
[340329352,1729050646025,-1602.64,0.00010995,2]
[340329353,1729050646034,-731.4,0.00010995,2]
[340329354,1729050646044,-4383.87,0.00010995,2]
[340329355,1729050646054,-829.73,0.00010995,2]
[340329356,1729050646072,-802.61,0.00010995,2]
[340329357,1729050646082,-500.0,0.00010995,2]
[340329358,1729050646091,-286.1816358,0.00010995,2]
[340329359,1729050646101,-548.0,0.00010995,2]
[340329360,1729050646111,-1013.65,0.00010995,2]
[340329361,1729050646121,-737.35,0.00010995,2]
[340329362,1729050646131,-948.62,0.00010995,2]
[340329363,1729050646140,-1804.75,0.00010995,2]
[340329364,1729050646149,-500.0,0.00010995,2]
[340329365,1729050646159,-1132.82,0.00010995,2]
[340329366,1729050646168,-500.0,0.00010995,2]
[340329367,1729050646178,-650.03,0.00010995,2]